{"text_format":"1","workbook":"xlsx","n_sheets":2,"sheets":["XML","data"],"not_rendered":{"charts":0,"images":0,"macros":1,"external_links":0,"defined_names":0,"comments":0,"pivot_tables":0},"unopened":[],"bounds":{"document_bytes":16777216,"sheet_cells":100000,"rows_first":2000,"rows_last":500,"rows_between":2000,"halvings":0,"cell_chars":16384,"cell_head_chars":4096},"cells_cut":0,"cells_raw":0,"read":"whole","date_system":"1900"}

{"sheet":"XML","index":0,"n_rows":55,"n_cols":13,"rows_kept":55,"cut":false,"hidden":false,"merged":[[0,2,0,7],[77,3,77,4],[71,3,71,4],[44,2,44,3],[30,2,30,3],[37,2,37,3],[9,2,9,3],[16,2,16,3],[23,2,23,3],[39,1,39,7],[23,0,23,1],[30,0,30,1],[37,0,37,1],[11,1,11,7],[18,1,18,7],[25,1,25,7],[17,10,17,15],[44,0,44,1],[4,1,4,7],[4,10,4,15],[4,0,8,0],[39,0,43,0],[9,0,9,1],[16,0,16,1],[11,0,15,0],[18,0,22,0],[25,0,29,0],[32,0,36,0],[32,1,32,7]]}
[null,null,"PENTA - bannerová kampaň"]
[]
["Set","Id","Název produktu","Popis produktu (150 znaků max)","Zbývá","Cena původní","Cena nyní","URL prokliku"]
[null,null,null,null,null,null,null,null," "]
[1,"Mixery",null,null,null,null,null,null,null,null,"Nastavení bannerové kampaně"]
[null,1,"Mixér G21 VitalStick Pro","Černý tyčový mixér VitalStick Pro s neuvěřitelným výkonem 1 000 W, tichým chodem, unikátně sestavenými noži,  celokovové tělo a bohaté příslušenství.",{"$f":"(LEN(D6)-150)*(-1)","v":1},2999,2499,"http://www.penta.cz/cz/mixery-mlynky-roboty/370495728-mixer-g21-vitalstick-pro-1000-w-s-food-processorem-black"," ",null,"Počet setů",3,"Kolik setů chcete vygenerovat? Možnosti [1…6]"]
[null,2,"Mixér G21 VitalStick 800 W","Multifunkční tyčový mixér G21 VitalStick v červeno - černé barvě s výkonem 800 W. Rozložení nožů 3D Quattro blade systém pro mixování ve 4 úrovních. ",{"$f":"(LEN(D7)-150)*(-1)","v":1},1999,1399,"http://www.penta.cz/cz/mixery-mlynky-roboty/329659770-mixer-g21-vitalstick-800-w-red-black"," ",null,"Název kampaně","Petna_2017_07","Označení pro Google Analitics"]
[null,3,"Blender G21","Blender G21 Perfect Smoothie Red je kvalitní výkonný a multifunkční mixér. Mixér má výkon 1500 W, od 10 000 do 35 000 otáček za minutu.",{"$f":"(LEN(D8)-150)*(-1)","v":15},7999,5499,"http://www.penta.cz/cz/mixery-mlynky-roboty/111706674-blender-g21-perfect-smoothie-red"," "]
[null,4,"Blender G21","Univerzální kuchyňský robot Bosch MUM 4880 se stane společně s jeho příslušenstvím všestranným pomocníkem ve vaší kuchyni.",{"$f":"(LEN(D9)-150)*(-1)","v":28},9990,7999,"http://www.penta.cz/cz/mixery-mlynky-roboty/312520485-blender-g21-perfect-smoothie-acoustic-black"," "]
["Slogan",null,"Více kvalitních mixérů, mlínků, robotů a ostatních pomocníků do kuchyně naleznete na www.penta.cz",null,null,null,null,"http://www.penta.cz/cz/mixery-mlynky-roboty"," "]
[null,null,null,null,null,null,null,null," "]
[2,"Odstavnovace",null,null,null,null,null,null," "]
[null,1,"Mixér G21 VitalStick Pro","Černý tyčový mixér VitalStick Pro s neuvěřitelným výkonem 1 000 W, tichým chodem, unikátně sestavenými noži,  celokovové tělo a bohaté příslušenství.",{"$f":"(LEN(D13)-150)*(-1)","v":1},2999,2499,"http://www.penta.cz/cz/mixery-mlynky-roboty/370495728-mixer-g21-vitalstick-pro-1000-w-s-food-processorem-black"," "]
[null,2,"Mixér G21 VitalStick 800 W","Multifunkční tyčový mixér G21 VitalStick v červeno - černé barvě s výkonem 800 W. Rozložení nožů 3D Quattro blade systém pro mixování ve 4 úrovních. ",{"$f":"(LEN(D14)-150)*(-1)","v":1},1999,1399,"http://www.penta.cz/cz/mixery-mlynky-roboty/329659770-mixer-g21-vitalstick-800-w-red-black"," "]
[null,3,"Blender G21","Blender G21 Perfect Smoothie Red je kvalitní výkonný a multifunkční mixér. Mixér má výkon 1500 W, od 10 000 do 35 000 otáček za minutu.",{"$f":"(LEN(D15)-150)*(-1)","v":15},7999,5499,"http://www.penta.cz/cz/mixery-mlynky-roboty/111706674-blender-g21-perfect-smoothie-red"," "]
[null,4,"Blender G21","Univerzální kuchyňský robot Bosch MUM 4880 se stane společně s jeho příslušenstvím všestranným pomocníkem ve vaší kuchyni.",{"$f":"(LEN(D16)-150)*(-1)","v":28},9990,7999,"http://www.penta.cz/cz/mixery-mlynky-roboty/312520485-blender-g21-perfect-smoothie-acoustic-black"," "]
["Slogan",null,"Více kvalitních mixérů, mlínků, robotů a ostatních pomocníků do kuchyně naleznete na www.penta.cz",null,null,null,null,"http://www.penta.cz/cz/mixery-mlynky-roboty"," "]
[null,null,null,null,null,null,null,null," "]
[3,"Susicky",null,null,null,null,null,null," "]
[null,1,"Mixér G21 VitalStick Pro","Černý tyčový mixér VitalStick Pro s neuvěřitelným výkonem 1 000 W, tichým chodem, unikátně sestavenými noži,  celokovové tělo a bohaté příslušenství.",{"$f":"(LEN(D20)-150)*(-1)","v":1},2999,2499,"http://www.penta.cz/cz/mixery-mlynky-roboty/370495728-mixer-g21-vitalstick-pro-1000-w-s-food-processorem-black"," "]
[null,2,"Mixér G21 VitalStick 800 W","Multifunkční tyčový mixér G21 VitalStick v červeno - černé barvě s výkonem 800 W. Rozložení nožů 3D Quattro blade systém pro mixování ve 4 úrovních. ",{"$f":"(LEN(D21)-150)*(-1)","v":1},1999,1399,"http://www.penta.cz/cz/mixery-mlynky-roboty/329659770-mixer-g21-vitalstick-800-w-red-black"," "]
[null,3,"Blender G21","Blender G21 Perfect Smoothie Red je kvalitní výkonný a multifunkční mixér. Mixér má výkon 1500 W, od 10 000 do 35 000 otáček za minutu.",{"$f":"(LEN(D22)-150)*(-1)","v":15},7999,5499,"http://www.penta.cz/cz/mixery-mlynky-roboty/111706674-blender-g21-perfect-smoothie-red"," "]
[null,4,"Blender G21","Univerzální kuchyňský robot Bosch MUM 4880 se stane společně s jeho příslušenstvím všestranným pomocníkem ve vaší kuchyni.",{"$f":"(LEN(D23)-150)*(-1)","v":28},9990,7999,"http://www.penta.cz/cz/mixery-mlynky-roboty/312520485-blender-g21-perfect-smoothie-acoustic-black"," "]
["Slogan",null,"Více kvalitních mixérů, mlínků, robotů a ostatních pomocníků do kuchyně naleznete na www.penta.cz",null,null,null,null,"http://www.penta.cz/cz/mixery-mlynky-roboty"," "]
[null,null,null,null,null,null,null,null," "]
[4,"Krajece",null,null,null,null,null,null," "]
[null,1,"Mixér G21 VitalStick Pro","Černý tyčový mixér VitalStick Pro s neuvěřitelným výkonem 1 000 W, tichým chodem, unikátně sestavenými noži,  celokovové tělo a bohaté příslušenství.",{"$f":"(LEN(D27)-150)*(-1)","v":1},2999,2499,"http://www.penta.cz/cz/mixery-mlynky-roboty/370495728-mixer-g21-vitalstick-pro-1000-w-s-food-processorem-black"," "]
[null,2,"Mixér G21 VitalStick 800 W","Multifunkční tyčový mixér G21 VitalStick v červeno - černé barvě s výkonem 800 W. Rozložení nožů 3D Quattro blade systém pro mixování ve 4 úrovních. ",{"$f":"(LEN(D28)-150)*(-1)","v":1},1999,1399,"http://www.penta.cz/cz/mixery-mlynky-roboty/329659770-mixer-g21-vitalstick-800-w-red-black"," "]
[null,3,"Blender G21","Blender G21 Perfect Smoothie Red je kvalitní výkonný a multifunkční mixér. Mixér má výkon 1500 W, od 10 000 do 35 000 otáček za minutu.",{"$f":"(LEN(D29)-150)*(-1)","v":15},7999,5499,"http://www.penta.cz/cz/mixery-mlynky-roboty/111706674-blender-g21-perfect-smoothie-red"," "]
[null,4,"Blender G21","Univerzální kuchyňský robot Bosch MUM 4880 se stane společně s jeho příslušenstvím všestranným pomocníkem ve vaší kuchyni.",{"$f":"(LEN(D30)-150)*(-1)","v":28},9990,7999,"http://www.penta.cz/cz/mixery-mlynky-roboty/312520485-blender-g21-perfect-smoothie-acoustic-black"," "]
["Slogan",null,"Více kvalitních mixérů, mlínků, robotů a ostatních pomocníků do kuchyně naleznete na www.penta.cz",null,null,null,null,"http://www.penta.cz/cz/mixery-mlynky-roboty"," "]
[null,null,null,null,null,null,null,null," "]
[5,"Roboti",null,null,null,null,null,null," "]
[null,1,"Mixér G21 VitalStick Pro","Černý tyčový mixér VitalStick Pro s neuvěřitelným výkonem 1 000 W, tichým chodem, unikátně sestavenými noži,  celokovové tělo a bohaté příslušenství.",{"$f":"(LEN(D34)-150)*(-1)","v":1},2999,2499,"http://www.penta.cz/cz/mixery-mlynky-roboty/370495728-mixer-g21-vitalstick-pro-1000-w-s-food-processorem-black"," "]
[null,2,"Mixér G21 VitalStick 800 W","Multifunkční tyčový mixér G21 VitalStick v červeno - černé barvě s výkonem 800 W. Rozložení nožů 3D Quattro blade systém pro mixování ve 4 úrovních. ",{"$f":"(LEN(D35)-150)*(-1)","v":1},1999,1399,"http://www.penta.cz/cz/mixery-mlynky-roboty/329659770-mixer-g21-vitalstick-800-w-red-black"," "]
[null,3,"Blender G21","Blender G21 Perfect Smoothie Red je kvalitní výkonný a multifunkční mixér. Mixér má výkon 1500 W, od 10 000 do 35 000 otáček za minutu.",{"$f":"(LEN(D36)-150)*(-1)","v":15},7999,5499,"http://www.penta.cz/cz/mixery-mlynky-roboty/111706674-blender-g21-perfect-smoothie-red"," "]
[null,4,"Blender G21","Univerzální kuchyňský robot Bosch MUM 4880 se stane společně s jeho příslušenstvím všestranným pomocníkem ve vaší kuchyni.",{"$f":"(LEN(D37)-150)*(-1)","v":28},9990,7999,"http://www.penta.cz/cz/mixery-mlynky-roboty/312520485-blender-g21-perfect-smoothie-acoustic-black"," "]
["Slogan",null,"Více kvalitních mixérů, mlínků, robotů a ostatních pomocníků do kuchyně naleznete na www.penta.cz",null,null,null,null,"http://www.penta.cz/cz/mixery-mlynky-roboty"," "]
[null,null,null,null,null,null,null,null," "]
[6,"Hnetace",null,null,null,null,null,null," "]
[null,1,"Mixér G21 VitalStick Pro 1000 W","Černý tyčový mixér VitalStick Pro s neuvěřitelným výkonem 1 000 W, tichým chodem, unikátně sestavenými noži,  celokovové tělo a bohaté příslušenství.",{"$f":"(LEN(D41)-150)*(-1)","v":1},2999,2499,"http://www.penta.cz/cz/mixery-mlynky-roboty/370495728-mixer-g21-vitalstick-pro-1000-w-s-food-processorem-black"," "]
[null,2,"Mixér G21 VitalStick 800 W","Multifunkční tyčový mixér G21 VitalStick v červeno - černé barvě s výkonem 800 W. Rozložení nožů 3D Quattro blade systém pro mixování ve 4 úrovních. ",{"$f":"(LEN(D42)-150)*(-1)","v":1},1999,1399,"http://www.penta.cz/cz/mixery-mlynky-roboty/329659770-mixer-g21-vitalstick-800-w-red-black"," "]
[null,3,"Blender G21","Blender G21 Perfect Smoothie Red je kvalitní výkonný a multifunkční mixér. Mixér má výkon 1500 W, od 10 000 do 35 000 otáček za minutu.",{"$f":"(LEN(D43)-150)*(-1)","v":15},7999,5499,"http://www.penta.cz/cz/mixery-mlynky-roboty/111706674-blender-g21-perfect-smoothie-red"," "]
[null,4,"Blender G21","Univerzální kuchyňský robot Bosch MUM 4880 se stane společně s jeho příslušenstvím všestranným pomocníkem ve vaší kuchyni.",{"$f":"(LEN(D44)-150)*(-1)","v":28},9990,7999,"http://www.penta.cz/cz/mixery-mlynky-roboty/312520485-blender-g21-perfect-smoothie-acoustic-black"," "]
["Slogan",null,"Více kvalitních mixérů, mlínků, robotů a ostatních pomocníků do kuchyně naleznete na www.penta.cz",null,null,null,null,"http://www.penta.cz/cz/mixery-mlynky-roboty"," "]
[null,null,null,null,null,null,null,null," "]
[]
[null,null,null,null,null,null,null,null," "]
[null,null,null,null,null,null,null,null," "]
[null,null,null,null,null,null,null,null," "]
[null,null,null,null,null,null,null,null," "]
[null,null,null,null,null,null,null,null," "]
[null,null,null,null,null,null,null,null," "]
[null,null,null,null,null,null,null,null," "]
[null,null,null,null,null,null,null,null," "]

{"sheet":"data","index":1,"n_rows":253,"n_cols":7,"rows_kept":253,"cut":false,"hidden":false,"merged":[[0,0,0,2],[223,0,223,2],[2,0,2,5],[37,1,37,2],[73,1,73,2],[109,1,109,2],[145,1,145,2],[181,1,181,2],[38,1,38,2],[74,1,74,2],[110,1,110,2],[146,1,146,2],[182,1,182,2],[218,1,218,2]]}
["XML feed"]
[]
["<?xml version=\"1.0\" encoding=\"utf-8\"?>"]
["<banner>"]
[{"$f":"\"<set id='\" & XML!B5 & \"'>\"","v":"<set id='Mixery'>"}]
[null,"<zbozi>",null,null,null,null," "]
[null,null,{"$f":" \"<nazev>\" & XML!C6 & \"</nazev>\"","v":"<nazev>Mixér G21 VitalStick Pro</nazev>"}]
[null,null,{"$f":" \"<popis>\" & XML!D6 & \"</popis>\"","v":"<popis>Černý tyčový mixér VitalStick Pro s neuvěřitelným výkonem 1 000 W, tichým chodem, unikátně sestavenými noži,  celokovové tělo a bohaté příslušenství.</popis>"}]
[null,null,{"$f":"\"<obrazek_url>\" & \"./produkty\" & \"/\" & XML!A5 & \"_\" & XML!B6 &\".jpg\" & \"</obrazek_url>\"","v":"<obrazek_url>./produkty/1_1.jpg</obrazek_url>"}]
[null,null,{"$f":"\"<cena_puvodni>\" & (XML!F6) & \"</cena_puvodni>\"","v":"<cena_puvodni>2999</cena_puvodni>"}]
[null,null,{"$f":"\"<cena>\" & (XML!G6) & \"</cena>\"","v":"<cena>2499</cena>"}]
[null,null,{"$f":"\"<url_proklik>\" & XML!H6& \"?utm_content=\" & XML!B5 & \"&amp;utm_campaign=\" & XML!L7 & \"&amp;</url_proklik>\"","v":"<url_proklik>http://www.penta.cz/cz/mixery-mlynky-roboty/370495728-mixer-g21-vitalstick-pro-1000-w-s-food-processorem-black?utm_content=Mixery&amp;utm_campaign=Petna_2017_07&amp;</url_proklik>"}]
[null,"</zbozi>"]
[null,"<zbozi>",null,null,null,null," "]
[null,null,{"$f":" \"<nazev>\" & XML!C7 & \"</nazev>\"","v":"<nazev>Mixér G21 VitalStick 800 W</nazev>"}]
[null,null,{"$f":" \"<popis>\" & XML!D7 & \"</popis>\"","v":"<popis>Multifunkční tyčový mixér G21 VitalStick v červeno - černé barvě s výkonem 800 W. Rozložení nožů 3D Quattro blade systém pro mixování ve 4 úrovních. </popis>"}]
[null,null,{"$f":"\"<obrazek_url>\" & \"./produkty\" & \"/\" & XML!A5 & \"_\" & XML!B7 &\".jpg\" & \"</obrazek_url>\"","v":"<obrazek_url>./produkty/1_2.jpg</obrazek_url>"}]
[null,null,{"$f":"\"<cena_puvodni>\" & (XML!F7) & \"</cena_puvodni>\"","v":"<cena_puvodni>1999</cena_puvodni>"}]
[null,null,{"$f":"\"<cena>\" & (XML!G7) & \"</cena>\"","v":"<cena>1399</cena>"}]
[null,null,{"$f":"\"<url_proklik>\" & XML!H7& \"?utm_content=\" & XML!B5 & \"&amp;utm_campaign=\" & XML!L7 & \"&amp;</url_proklik>\"","v":"<url_proklik>http://www.penta.cz/cz/mixery-mlynky-roboty/329659770-mixer-g21-vitalstick-800-w-red-black?utm_content=Mixery&amp;utm_campaign=Petna_2017_07&amp;</url_proklik>"}]
[null,"</zbozi>"]
[null,"<zbozi>",null,null,null,null," "]
[null,null,{"$f":" \"<nazev>\" & XML!C8 & \"</nazev>\"","v":"<nazev>Blender G21</nazev>"}]
[null,null,{"$f":" \"<popis>\" & XML!D8 & \"</popis>\"","v":"<popis>Blender G21 Perfect Smoothie Red je kvalitní výkonný a multifunkční mixér. Mixér má výkon 1500 W, od 10 000 do 35 000 otáček za minutu.</popis>"}]
[null,null,{"$f":"\"<obrazek_url>\" & \"./produkty\" & \"/\" & XML!A5 & \"_\" & XML!B8 &\".jpg\" & \"</obrazek_url>\"","v":"<obrazek_url>./produkty/1_3.jpg</obrazek_url>"}]
[null,null,{"$f":"\"<cena_puvodni>\" & (XML!F8) & \"</cena_puvodni>\"","v":"<cena_puvodni>7999</cena_puvodni>"}]
[null,null,{"$f":"\"<cena>\" & (XML!G8) & \"</cena>\"","v":"<cena>5499</cena>"}]
[null,null,{"$f":"\"<url_proklik>\" & XML!H8& \"?utm_content=\" & XML!B5 & \"&amp;utm_campaign=\" & XML!L7 & \"&amp;</url_proklik>\"","v":"<url_proklik>http://www.penta.cz/cz/mixery-mlynky-roboty/111706674-blender-g21-perfect-smoothie-red?utm_content=Mixery&amp;utm_campaign=Petna_2017_07&amp;</url_proklik>"}]
[null,"</zbozi>"]
[null,"<zbozi>",null,null,null,null," "]
[null,null,{"$f":" \"<nazev>\" & XML!C9 & \"</nazev>\"","v":"<nazev>Blender G21</nazev>"}]
[null,null,{"$f":" \"<popis>\" & XML!D9 & \"</popis>\"","v":"<popis>Univerzální kuchyňský robot Bosch MUM 4880 se stane společně s jeho příslušenstvím všestranným pomocníkem ve vaší kuchyni.</popis>"}]
[null,null,{"$f":"\"<obrazek_url>\" & \"./produkty\" & \"/\" & XML!A5 & \"_\" & XML!B9 &\".jpg\" & \"</obrazek_url>\"","v":"<obrazek_url>./produkty/1_4.jpg</obrazek_url>"}]
[null,null,{"$f":"\"<cena_puvodni>\" & (XML!F9) & \"</cena_puvodni>\"","v":"<cena_puvodni>9990</cena_puvodni>"}]
[null,null,{"$f":"\"<cena>\" & (XML!G9) & \"</cena>\"","v":"<cena>7999</cena>"}]
[null,null,{"$f":"\"<url_proklik>\" & XML!H9& \"?utm_content=\" & XML!B5 & \"&amp;utm_campaign=\" & XML!L7 & \"&amp;</url_proklik>\"","v":"<url_proklik>http://www.penta.cz/cz/mixery-mlynky-roboty/312520485-blender-g21-perfect-smoothie-acoustic-black?utm_content=Mixery&amp;utm_campaign=Petna_2017_07&amp;</url_proklik>"}]
[null,"</zbozi>"]
[null,{"$f":" \"<slogan>\" & XML!$C10 & \"</slogan>\"","v":"<slogan>Více kvalitních mixérů, mlínků, robotů a ostatních pomocníků do kuchyně naleznete na www.penta.cz</slogan>"},null,null,null,null," "]
[null,{"$f":"\"<slogan_url>\" & XML!H10& \"?utm_content=set\" & XML!A5 & \"_slogan&amp;utm_campaign=\" & XML!L7 & \"&amp;</slogan_url>\"","v":"<slogan_url>http://www.penta.cz/cz/mixery-mlynky-roboty?utm_content=set1_slogan&amp;utm_campaign=Petna_2017_07&amp;</slogan_url>"}]
["</set>"]
[{"$f":"\"<set id='\" & XML!B12 & \"'>\"","v":"<set id='Odstavnovace'>"}]
[null,"<zbozi>",null,null,null,null," "]
[null,null,{"$f":" \"<nazev>\" & XML!C13 & \"</nazev>\"","v":"<nazev>Mixér G21 VitalStick Pro</nazev>"}]
[null,null,{"$f":" \"<popis>\" & XML!D13 & \"</popis>\"","v":"<popis>Černý tyčový mixér VitalStick Pro s neuvěřitelným výkonem 1 000 W, tichým chodem, unikátně sestavenými noži,  celokovové tělo a bohaté příslušenství.</popis>"}]
[null,null,{"$f":"\"<obrazek_url>\" & \"./produkty\" & \"/\" & XML!A12 & \"_\" & XML!B13 &\".jpg\" & \"</obrazek_url>\"","v":"<obrazek_url>./produkty/2_1.jpg</obrazek_url>"}]
[null,null,{"$f":"\"<cena_puvodni>\" & (XML!F13) & \"</cena_puvodni>\"","v":"<cena_puvodni>2999</cena_puvodni>"}]
[null,null,{"$f":"\"<cena>\" & (XML!G13) & \"</cena>\"","v":"<cena>2499</cena>"}]
[null,null,{"$f":"\"<url_proklik>\" & XML!H13& \"?utm_content=\" & XML!B12 & \"&amp;utm_campaign=\" & XML!L7 & \"&amp;</url_proklik>\"","v":"<url_proklik>http://www.penta.cz/cz/mixery-mlynky-roboty/370495728-mixer-g21-vitalstick-pro-1000-w-s-food-processorem-black?utm_content=Odstavnovace&amp;utm_campaign=Petna_2017_07&amp;</url_proklik>"}]
[null,"</zbozi>"]
[null,"<zbozi>",null,null,null,null," "]
[null,null,{"$f":" \"<nazev>\" & XML!C14 & \"</nazev>\"","v":"<nazev>Mixér G21 VitalStick 800 W</nazev>"}]
[null,null,{"$f":" \"<popis>\" & XML!D14 & \"</popis>\"","v":"<popis>Multifunkční tyčový mixér G21 VitalStick v červeno - černé barvě s výkonem 800 W. Rozložení nožů 3D Quattro blade systém pro mixování ve 4 úrovních. </popis>"}]
[null,null,{"$f":"\"<obrazek_url>\" & \"./produkty\" & \"/\" & XML!A12 & \"_\" & XML!B14 &\".jpg\" & \"</obrazek_url>\"","v":"<obrazek_url>./produkty/2_2.jpg</obrazek_url>"}]
[null,null,{"$f":"\"<cena_puvodni>\" & (XML!F14) & \"</cena_puvodni>\"","v":"<cena_puvodni>1999</cena_puvodni>"}]
[null,null,{"$f":"\"<cena>\" & (XML!G14) & \"</cena>\"","v":"<cena>1399</cena>"}]
[null,null,{"$f":"\"<url_proklik>\" & XML!H14& \"?utm_content=\" & XML!B12 & \"&amp;utm_campaign=\" & XML!L7 & \"&amp;</url_proklik>\"","v":"<url_proklik>http://www.penta.cz/cz/mixery-mlynky-roboty/329659770-mixer-g21-vitalstick-800-w-red-black?utm_content=Odstavnovace&amp;utm_campaign=Petna_2017_07&amp;</url_proklik>"}]
[null,"</zbozi>"]
[null,"<zbozi>",null,null,null,null," "]
[null,null,{"$f":" \"<nazev>\" & XML!C15 & \"</nazev>\"","v":"<nazev>Blender G21</nazev>"}]
[null,null,{"$f":" \"<popis>\" & XML!D15 & \"</popis>\"","v":"<popis>Blender G21 Perfect Smoothie Red je kvalitní výkonný a multifunkční mixér. Mixér má výkon 1500 W, od 10 000 do 35 000 otáček za minutu.</popis>"}]
[null,null,{"$f":"\"<obrazek_url>\" & \"./produkty\" & \"/\" & XML!A12 & \"_\" & XML!B15 &\".jpg\" & \"</obrazek_url>\"","v":"<obrazek_url>./produkty/2_3.jpg</obrazek_url>"}]
[null,null,{"$f":"\"<cena_puvodni>\" & (XML!F15) & \"</cena_puvodni>\"","v":"<cena_puvodni>7999</cena_puvodni>"}]
[null,null,{"$f":"\"<cena>\" & (XML!G15) & \"</cena>\"","v":"<cena>5499</cena>"}]
[null,null,{"$f":"\"<url_proklik>\" & XML!H15& \"?utm_content=\" & XML!B12 & \"&amp;utm_campaign=\" & XML!L7 & \"&amp;</url_proklik>\"","v":"<url_proklik>http://www.penta.cz/cz/mixery-mlynky-roboty/111706674-blender-g21-perfect-smoothie-red?utm_content=Odstavnovace&amp;utm_campaign=Petna_2017_07&amp;</url_proklik>"}]
[null,"</zbozi>"]
[null,"<zbozi>",null,null,null,null," "]
[null,null,{"$f":" \"<nazev>\" & XML!C16 & \"</nazev>\"","v":"<nazev>Blender G21</nazev>"}]
[null,null,{"$f":" \"<popis>\" & XML!D16 & \"</popis>\"","v":"<popis>Univerzální kuchyňský robot Bosch MUM 4880 se stane společně s jeho příslušenstvím všestranným pomocníkem ve vaší kuchyni.</popis>"}]
[null,null,{"$f":"\"<obrazek_url>\" & \"./produkty\" & \"/\" & XML!A12 & \"_\" & XML!B16 &\".jpg\" & \"</obrazek_url>\"","v":"<obrazek_url>./produkty/2_4.jpg</obrazek_url>"}]
[null,null,{"$f":"\"<cena_puvodni>\" & (XML!F16) & \"</cena_puvodni>\"","v":"<cena_puvodni>9990</cena_puvodni>"}]
[null,null,{"$f":"\"<cena>\" & (XML!G16) & \"</cena>\"","v":"<cena>7999</cena>"}]
[null,null,{"$f":"\"<url_proklik>\" & XML!H16& \"?utm_content=\" & XML!B12 & \"&amp;utm_campaign=\" & XML!L7 & \"&amp;</url_proklik>\"","v":"<url_proklik>http://www.penta.cz/cz/mixery-mlynky-roboty/312520485-blender-g21-perfect-smoothie-acoustic-black?utm_content=Odstavnovace&amp;utm_campaign=Petna_2017_07&amp;</url_proklik>"}]
[null,"</zbozi>"]
[null,{"$f":" \"<slogan>\" & XML!$C17 & \"</slogan>\"","v":"<slogan>Více kvalitních mixérů, mlínků, robotů a ostatních pomocníků do kuchyně naleznete na www.penta.cz</slogan>"}]
[null,{"$f":"\"<slogan_url>\" & XML!H17& \"?utm_content=set\" & XML!A12 & \"_slogan&amp;utm_campaign=\" & XML!L7 & \"&amp;</slogan_url>\"","v":"<slogan_url>http://www.penta.cz/cz/mixery-mlynky-roboty?utm_content=set2_slogan&amp;utm_campaign=Petna_2017_07&amp;</slogan_url>"}]
["</set>"]
[{"$f":"\"<set id='\" & XML!B19 & \"'>\"","v":"<set id='Susicky'>"}]
[null,"<zbozi>"]
[null,null,{"$f":" \"<nazev>\" & XML!C20 & \"</nazev>\"","v":"<nazev>Mixér G21 VitalStick Pro</nazev>"}]
[null,null,{"$f":" \"<popis>\" & XML!D20 & \"</popis>\"","v":"<popis>Černý tyčový mixér VitalStick Pro s neuvěřitelným výkonem 1 000 W, tichým chodem, unikátně sestavenými noži,  celokovové tělo a bohaté příslušenství.</popis>"}]
[null,null,{"$f":"\"<obrazek_url>\" & \"./produkty\" & \"/\" & XML!A19 & \"_\" & XML!B20 &\".jpg\" & \"</obrazek_url>\"","v":"<obrazek_url>./produkty/3_1.jpg</obrazek_url>"}]
[null,null,{"$f":"\"<cena_puvodni>\" & (XML!F20) & \"</cena_puvodni>\"","v":"<cena_puvodni>2999</cena_puvodni>"}]
[null,null,{"$f":"\"<cena>\" & (XML!G20) & \"</cena>\"","v":"<cena>2499</cena>"}]
[null,null,{"$f":"\"<url_proklik>\" & XML!H20& \"?utm_content=\" & XML!B19 & \"&amp;utm_campaign=\" & XML!L7 & \"&amp;</url_proklik>\"","v":"<url_proklik>http://www.penta.cz/cz/mixery-mlynky-roboty/370495728-mixer-g21-vitalstick-pro-1000-w-s-food-processorem-black?utm_content=Susicky&amp;utm_campaign=Petna_2017_07&amp;</url_proklik>"}]
[null,"</zbozi>"]
[null,"<zbozi>"]
[null,null,{"$f":" \"<nazev>\" & XML!C21 & \"</nazev>\"","v":"<nazev>Mixér G21 VitalStick 800 W</nazev>"}]
[null,null,{"$f":" \"<popis>\" & XML!D21 & \"</popis>\"","v":"<popis>Multifunkční tyčový mixér G21 VitalStick v červeno - černé barvě s výkonem 800 W. Rozložení nožů 3D Quattro blade systém pro mixování ve 4 úrovních. </popis>"}]
[null,null,{"$f":"\"<obrazek_url>\" & \"./produkty\" & \"/\" & XML!A19 & \"_\" & XML!B21 &\".jpg\" & \"</obrazek_url>\"","v":"<obrazek_url>./produkty/3_2.jpg</obrazek_url>"}]
[null,null,{"$f":"\"<cena_puvodni>\" & (XML!F21) & \"</cena_puvodni>\"","v":"<cena_puvodni>1999</cena_puvodni>"}]
[null,null,{"$f":"\"<cena>\" & (XML!G21) & \"</cena>\"","v":"<cena>1399</cena>"},null,null,null," "]
[null,null,{"$f":"\"<url_proklik>\" & XML!H21& \"?utm_content=\" & XML!B19 & \"&amp;utm_campaign=\" & XML!L7 & \"&amp;</url_proklik>\"","v":"<url_proklik>http://www.penta.cz/cz/mixery-mlynky-roboty/329659770-mixer-g21-vitalstick-800-w-red-black?utm_content=Susicky&amp;utm_campaign=Petna_2017_07&amp;</url_proklik>"}]
[null,"</zbozi>"]
[null,"<zbozi>",null,null,null,null," "]
[null,null,{"$f":" \"<nazev>\" & XML!C22 & \"</nazev>\"","v":"<nazev>Blender G21</nazev>"}]
[null,null,{"$f":" \"<popis>\" & XML!D22 & \"</popis>\"","v":"<popis>Blender G21 Perfect Smoothie Red je kvalitní výkonný a multifunkční mixér. Mixér má výkon 1500 W, od 10 000 do 35 000 otáček za minutu.</popis>"}]
[null,null,{"$f":"\"<obrazek_url>\" & \"./produkty\" & \"/\" & XML!A19 & \"_\" & XML!B22 &\".jpg\" & \"</obrazek_url>\"","v":"<obrazek_url>./produkty/3_3.jpg</obrazek_url>"}]
[null,null,{"$f":"\"<cena_puvodni>\" & (XML!F22) & \"</cena_puvodni>\"","v":"<cena_puvodni>7999</cena_puvodni>"}]
[null,null,{"$f":"\"<cena>\" & (XML!G22) & \"</cena>\"","v":"<cena>5499</cena>"}]
[null,null,{"$f":"\"<url_proklik>\" & XML!H22& \"?utm_content=\" & XML!B19 & \"&amp;utm_campaign=\" & XML!L7 & \"&amp;</url_proklik>\"","v":"<url_proklik>http://www.penta.cz/cz/mixery-mlynky-roboty/111706674-blender-g21-perfect-smoothie-red?utm_content=Susicky&amp;utm_campaign=Petna_2017_07&amp;</url_proklik>"}]
[null,"</zbozi>"]
[null,"<zbozi>",null,null,null,null," "]
[null,null,{"$f":" \"<nazev>\" & XML!C23 & \"</nazev>\"","v":"<nazev>Blender G21</nazev>"}]
[null,null,{"$f":" \"<popis>\" & XML!D23 & \"</popis>\"","v":"<popis>Univerzální kuchyňský robot Bosch MUM 4880 se stane společně s jeho příslušenstvím všestranným pomocníkem ve vaší kuchyni.</popis>"}]
[null,null,{"$f":"\"<obrazek_url>\" & \"./produkty\" & \"/\" & XML!A19 & \"_\" & XML!B23 &\".jpg\" & \"</obrazek_url>\"","v":"<obrazek_url>./produkty/3_4.jpg</obrazek_url>"}]
[null,null,{"$f":"\"<cena_puvodni>\" & (XML!F23) & \"</cena_puvodni>\"","v":"<cena_puvodni>9990</cena_puvodni>"}]
[null,null,{"$f":"\"<cena>\" & (XML!G23) & \"</cena>\"","v":"<cena>7999</cena>"}]
[null,null,{"$f":"\"<url_proklik>\" & XML!H23& \"?utm_content=\" & XML!B19 & \"&amp;utm_campaign=\" & XML!L7 & \"&amp;</url_proklik></zbozi>\"","v":"<url_proklik>http://www.penta.cz/cz/mixery-mlynky-roboty/312520485-blender-g21-perfect-smoothie-acoustic-black?utm_content=Susicky&amp;utm_campaign=Petna_2017_07&amp;</url_proklik></zbozi>"}]
[]
[null,{"$f":" \"<slogan>\" & XML!$C24 & \"</slogan>\"","v":"<slogan>Více kvalitních mixérů, mlínků, robotů a ostatních pomocníků do kuchyně naleznete na www.penta.cz</slogan>"}]
[null,{"$f":"\"<slogan_url>\" & XML!H24& \"?utm_content=set\" & XML!A19 & \"_slogan&amp;utm_campaign=\" & XML!L7 & \"&amp;</slogan_url>\"","v":"<slogan_url>http://www.penta.cz/cz/mixery-mlynky-roboty?utm_content=set3_slogan&amp;utm_campaign=Petna_2017_07&amp;</slogan_url>"}]
["</set>"]
[{"$f":"\"<set id='\" & XML!B26 & \"'>\"","v":"<set id='Krajece'>"}]
[null,"<zbozi>"]
[null,null,{"$f":" \"<nazev>\" & XML!C27 & \"</nazev>\"","v":"<nazev>Mixér G21 VitalStick Pro</nazev>"}]
[null,null,{"$f":" \"<popis>\" & XML!D27 & \"</popis>\"","v":"<popis>Černý tyčový mixér VitalStick Pro s neuvěřitelným výkonem 1 000 W, tichým chodem, unikátně sestavenými noži,  celokovové tělo a bohaté příslušenství.</popis>"}]
[null,null,{"$f":"\"<obrazek_url>\" & \"./produkty\" & \"/\" & XML!A26 & \"_\" & XML!B27 &\".jpg\" & \"</obrazek_url>\"","v":"<obrazek_url>./produkty/4_1.jpg</obrazek_url>"}]
[null,null,{"$f":"\"<cena_puvodni>\" & (XML!F27) & \"</cena_puvodni>\"","v":"<cena_puvodni>2999</cena_puvodni>"}]
[null,null,{"$f":"\"<cena>\" & (XML!G27) & \"</cena>\"","v":"<cena>2499</cena>"}]
[null,null,{"$f":"\"<url_proklik>\" & XML!H27& \"?utm_content=\" & XML!B26 & \"&amp;utm_campaign=\" & XML!L7 & \"&amp;</url_proklik>\"","v":"<url_proklik>http://www.penta.cz/cz/mixery-mlynky-roboty/370495728-mixer-g21-vitalstick-pro-1000-w-s-food-processorem-black?utm_content=Krajece&amp;utm_campaign=Petna_2017_07&amp;</url_proklik>"}]
[null,"</zbozi>"]
[null,"<zbozi>"]
[null,null,{"$f":" \"<nazev>\" & XML!C28 & \"</nazev>\"","v":"<nazev>Mixér G21 VitalStick 800 W</nazev>"}]
[null,null,{"$f":" \"<popis>\" & XML!D28 & \"</popis>\"","v":"<popis>Multifunkční tyčový mixér G21 VitalStick v červeno - černé barvě s výkonem 800 W. Rozložení nožů 3D Quattro blade systém pro mixování ve 4 úrovních. </popis>"}]
[null,null,{"$f":"\"<obrazek_url>\" & \"./produkty\" & \"/\" & XML!A26 & \"_\" & XML!B28 &\".jpg\" & \"</obrazek_url>\"","v":"<obrazek_url>./produkty/4_2.jpg</obrazek_url>"}]
[null,null,{"$f":"\"<cena_puvodni>\" & (XML!F28) & \"</cena_puvodni>\"","v":"<cena_puvodni>1999</cena_puvodni>"}]
[null,null,{"$f":"\"<cena>\" & (XML!G28) & \"</cena>\"","v":"<cena>1399</cena>"},null,null,null," "]
[null,null,{"$f":"\"<url_proklik>\" & XML!H28& \"?utm_content=\" & XML!B26 & \"&amp;utm_campaign=\" & XML!L7 & \"&amp;</url_proklik>\"","v":"<url_proklik>http://www.penta.cz/cz/mixery-mlynky-roboty/329659770-mixer-g21-vitalstick-800-w-red-black?utm_content=Krajece&amp;utm_campaign=Petna_2017_07&amp;</url_proklik>"}]
[null,"</zbozi>"]
[null,"<zbozi>"]
[null,null,{"$f":" \"<nazev>\" & XML!C29 & \"</nazev>\"","v":"<nazev>Blender G21</nazev>"}]
[null,null,{"$f":" \"<popis>\" & XML!D29 & \"</popis>\"","v":"<popis>Blender G21 Perfect Smoothie Red je kvalitní výkonný a multifunkční mixér. Mixér má výkon 1500 W, od 10 000 do 35 000 otáček za minutu.</popis>"}]
[null,null,{"$f":"\"<obrazek_url>\" & \"./produkty\" & \"/\" & XML!A26 & \"_\" & XML!B29 &\".jpg\" & \"</obrazek_url>\"","v":"<obrazek_url>./produkty/4_3.jpg</obrazek_url>"}]
[null,null,{"$f":"\"<cena_puvodni>\" & (XML!F29) & \"</cena_puvodni>\"","v":"<cena_puvodni>7999</cena_puvodni>"}]
[null,null,{"$f":"\"<cena>\" & (XML!G29) & \"</cena>\"","v":"<cena>5499</cena>"},null,null,null," "]
[null,null,{"$f":"\"<url_proklik>\" & XML!H29& \"?utm_content=\" & XML!B26 & \"&amp;utm_campaign=\" & XML!L7 & \"&amp;</url_proklik>\"","v":"<url_proklik>http://www.penta.cz/cz/mixery-mlynky-roboty/111706674-blender-g21-perfect-smoothie-red?utm_content=Krajece&amp;utm_campaign=Petna_2017_07&amp;</url_proklik>"}]
[null,"</zbozi>"]
[null,"<zbozi>"]
[null,null,{"$f":" \"<nazev>\" & XML!C30 & \"</nazev>\"","v":"<nazev>Blender G21</nazev>"}]
[null,null,{"$f":" \"<popis>\" & XML!D30 & \"</popis>\"","v":"<popis>Univerzální kuchyňský robot Bosch MUM 4880 se stane společně s jeho příslušenstvím všestranným pomocníkem ve vaší kuchyni.</popis>"}]
[null,null,{"$f":"\"<obrazek_url>\" & \"./produkty\" & \"/\" & XML!A26 & \"_\" & XML!B30 &\".jpg\" & \"</obrazek_url>\"","v":"<obrazek_url>./produkty/4_4.jpg</obrazek_url>"}]
[null,null,{"$f":"\"<cena_puvodni>\" & (XML!F30) & \"</cena_puvodni>\"","v":"<cena_puvodni>9990</cena_puvodni>"}]
[null,null,{"$f":"\"<cena>\" & (XML!G30) & \"</cena>\"","v":"<cena>7999</cena>"},null,null,null," "]
[null,null,{"$f":"\"<url_proklik>\" & XML!H30& \"?utm_content=\" & XML!B26 & \"&amp;utm_campaign=\" & XML!L7 & \"&amp;</url_proklik>\"","v":"<url_proklik>http://www.penta.cz/cz/mixery-mlynky-roboty/312520485-blender-g21-perfect-smoothie-acoustic-black?utm_content=Krajece&amp;utm_campaign=Petna_2017_07&amp;</url_proklik>"}]
[null,"</zbozi>"]
[null,{"$f":" \"<slogan>\" & XML!$C31 & \"</slogan>\"","v":"<slogan>Více kvalitních mixérů, mlínků, robotů a ostatních pomocníků do kuchyně naleznete na www.penta.cz</slogan>"},null,null,null,null," "]
[null,{"$f":"\"<slogan_url>\" & XML!H31& \"?utm_content=set\" & XML!A26 & \"_slogan&amp;utm_campaign=\" & XML!L7 & \"&amp;</slogan_url>\"","v":"<slogan_url>http://www.penta.cz/cz/mixery-mlynky-roboty?utm_content=set4_slogan&amp;utm_campaign=Petna_2017_07&amp;</slogan_url>"}]
["</set>"]
[{"$f":"\"<set id='\" & XML!B33 & \"'>\"","v":"<set id='Roboti'>"}]
[null,"<zbozi>"]
[null,null,{"$f":" \"<nazev>\" & XML!C34 & \"</nazev>\"","v":"<nazev>Mixér G21 VitalStick Pro</nazev>"}]
[null,null,{"$f":" \"<popis>\" & XML!D34 & \"</popis>\"","v":"<popis>Černý tyčový mixér VitalStick Pro s neuvěřitelným výkonem 1 000 W, tichým chodem, unikátně sestavenými noži,  celokovové tělo a bohaté příslušenství.</popis>"}]
[null,null,{"$f":"\"<obrazek_url>\" & \"./produkty\" & \"/\" & XML!A33 & \"_\" & XML!B34 &\".jpg\" & \"</obrazek_url>\"","v":"<obrazek_url>./produkty/5_1.jpg</obrazek_url>"}]
[null,null,{"$f":"\"<cena_puvodni>\" & (XML!F34) & \"</cena_puvodni>\"","v":"<cena_puvodni>2999</cena_puvodni>"}]
[null,null,{"$f":"\"<cena>\" & (XML!G34) & \"</cena>\"","v":"<cena>2499</cena>"},null,null,null," "]
[null,null,{"$f":"\"<url_proklik>\" & XML!H34& \"?utm_content=\" & XML!B33 & \"&amp;utm_campaign=\" & XML!L7 & \"&amp;</url_proklik>\"","v":"<url_proklik>http://www.penta.cz/cz/mixery-mlynky-roboty/370495728-mixer-g21-vitalstick-pro-1000-w-s-food-processorem-black?utm_content=Roboti&amp;utm_campaign=Petna_2017_07&amp;</url_proklik>"}]
[null,"</zbozi>"]
[null,"<zbozi>"]
[null,null,{"$f":" \"<nazev>\" & XML!C35 & \"</nazev>\"","v":"<nazev>Mixér G21 VitalStick 800 W</nazev>"}]
[null,null,{"$f":" \"<popis>\" & XML!D35 & \"</popis>\"","v":"<popis>Multifunkční tyčový mixér G21 VitalStick v červeno - černé barvě s výkonem 800 W. Rozložení nožů 3D Quattro blade systém pro mixování ve 4 úrovních. </popis>"}]
[null,null,{"$f":"\"<obrazek_url>\" & \"./produkty\" & \"/\" & XML!A33 & \"_\" & XML!B35 &\".jpg\" & \"</obrazek_url>\"","v":"<obrazek_url>./produkty/5_2.jpg</obrazek_url>"}]
[null,null,{"$f":"\"<cena_puvodni>\" & (XML!F35) & \"</cena_puvodni>\"","v":"<cena_puvodni>1999</cena_puvodni>"}]
[null,null,{"$f":"\"<cena>\" & (XML!G35) & \"</cena>\"","v":"<cena>1399</cena>"},null,null,null," "]
[null,null,{"$f":"\"<url_proklik>\" & XML!H35& \"?utm_content=\" & XML!B33 & \"&amp;utm_campaign=\" & XML!L7 & \"&amp;</url_proklik>\"","v":"<url_proklik>http://www.penta.cz/cz/mixery-mlynky-roboty/329659770-mixer-g21-vitalstick-800-w-red-black?utm_content=Roboti&amp;utm_campaign=Petna_2017_07&amp;</url_proklik>"}]
[null,"</zbozi>"]
[null,"<zbozi>"]
[null,null,{"$f":" \"<nazev>\" & XML!C36 & \"</nazev>\"","v":"<nazev>Blender G21</nazev>"}]
[null,null,{"$f":" \"<popis>\" & XML!D36 & \"</popis>\"","v":"<popis>Blender G21 Perfect Smoothie Red je kvalitní výkonný a multifunkční mixér. Mixér má výkon 1500 W, od 10 000 do 35 000 otáček za minutu.</popis>"}]
[null,null,{"$f":"\"<obrazek_url>\" & \"./produkty\" & \"/\" & XML!A33 & \"_\" & XML!B36 &\".jpg\" & \"</obrazek_url>\"","v":"<obrazek_url>./produkty/5_3.jpg</obrazek_url>"}]
[null,null,{"$f":"\"<cena_puvodni>\" & (XML!F36) & \"</cena_puvodni>\"","v":"<cena_puvodni>7999</cena_puvodni>"}]
[null,null,{"$f":"\"<cena>\" & (XML!G36) & \"</cena>\"","v":"<cena>5499</cena>"},null,null,null," "]
[null,null,{"$f":"\"<url_proklik>\" & XML!H36& \"?utm_content=\" & XML!B33 & \"&amp;utm_campaign=\" & XML!L7 & \"&amp;</url_proklik>\"","v":"<url_proklik>http://www.penta.cz/cz/mixery-mlynky-roboty/111706674-blender-g21-perfect-smoothie-red?utm_content=Roboti&amp;utm_campaign=Petna_2017_07&amp;</url_proklik>"}]
[null,"</zbozi>"]
[null,"<zbozi>"]
[null,null,{"$f":" \"<nazev>\" & XML!C37 & \"</nazev>\"","v":"<nazev>Blender G21</nazev>"}]
[null,null,{"$f":" \"<popis>\" & XML!D37 & \"</popis>\"","v":"<popis>Univerzální kuchyňský robot Bosch MUM 4880 se stane společně s jeho příslušenstvím všestranným pomocníkem ve vaší kuchyni.</popis>"}]
[null,null,{"$f":"\"<obrazek_url>\" & \"./produkty\" & \"/\" & XML!A33 & \"_\" & XML!B37 &\".jpg\" & \"</obrazek_url>\"","v":"<obrazek_url>./produkty/5_4.jpg</obrazek_url>"}]
[null,null,{"$f":"\"<cena_puvodni>\" & (XML!F37) & \"</cena_puvodni>\"","v":"<cena_puvodni>9990</cena_puvodni>"}]
[null,null,{"$f":"\"<cena>\" & (XML!G37) & \"</cena>\"","v":"<cena>7999</cena>"},null,null,null," "]
[null,null,{"$f":"\"<url_proklik>\" & XML!H37& \"?utm_content=\" & XML!B33 & \"&amp;utm_campaign=\" & XML!L7 & \"&amp;</url_proklik>\"","v":"<url_proklik>http://www.penta.cz/cz/mixery-mlynky-roboty/312520485-blender-g21-perfect-smoothie-acoustic-black?utm_content=Roboti&amp;utm_campaign=Petna_2017_07&amp;</url_proklik>"}]
[null,"</zbozi>"]
[null,{"$f":" \"<slogan>\" & XML!$C38 & \"</slogan>\"","v":"<slogan>Více kvalitních mixérů, mlínků, robotů a ostatních pomocníků do kuchyně naleznete na www.penta.cz</slogan>"}]
[null,{"$f":"\"<slogan_url>\" & XML!H38& \"?utm_content=set\" & XML!A33 & \"_slogan&amp;utm_campaign=\" & XML!L7 & \"&amp;</slogan_url>\"","v":"<slogan_url>http://www.penta.cz/cz/mixery-mlynky-roboty?utm_content=set5_slogan&amp;utm_campaign=Petna_2017_07&amp;</slogan_url>"}]
["</set>"]
[{"$f":"\"<set id='\" & XML!B40 & \"'>\"","v":"<set id='Hnetace'>"}]
[null,"<zbozi>"]
[null,null,{"$f":" \"<nazev>\" & XML!C41 & \"</nazev>\"","v":"<nazev>Mixér G21 VitalStick Pro 1000 W</nazev>"}]
[null,null,{"$f":" \"<popis>\" & XML!D41 & \"</popis>\"","v":"<popis>Černý tyčový mixér VitalStick Pro s neuvěřitelným výkonem 1 000 W, tichým chodem, unikátně sestavenými noži,  celokovové tělo a bohaté příslušenství.</popis>"}]
[null,null,{"$f":"\"<obrazek_url>\" & \"./produkty\" & \"/\" & XML!A40 & \"_\" & XML!B41 &\".jpg\" & \"</obrazek_url>\"","v":"<obrazek_url>./produkty/6_1.jpg</obrazek_url>"}]
[null,null,{"$f":"\"<cena_puvodni>\" & (XML!F41) & \"</cena_puvodni>\"","v":"<cena_puvodni>2999</cena_puvodni>"},null,null,null," "]
[null,null,{"$f":"\"<cena>\" & (XML!G41) & \"</cena>\"","v":"<cena>2499</cena>"}]
[null,null,{"$f":"\"<url_proklik>\" & XML!H41& \"?utm_content=\" & XML!B40 & \"&amp;utm_campaign=\" & XML!L7 & \"&amp;</url_proklik>\"","v":"<url_proklik>http://www.penta.cz/cz/mixery-mlynky-roboty/370495728-mixer-g21-vitalstick-pro-1000-w-s-food-processorem-black?utm_content=Hnetace&amp;utm_campaign=Petna_2017_07&amp;</url_proklik>"}]
[null,"</zbozi>"]
[null,"<zbozi>"]
[null,null,{"$f":" \"<nazev>\" & XML!C42 & \"</nazev>\"","v":"<nazev>Mixér G21 VitalStick 800 W</nazev>"}]
[null,null,{"$f":" \"<popis>\" & XML!D42 & \"</popis>\"","v":"<popis>Multifunkční tyčový mixér G21 VitalStick v červeno - černé barvě s výkonem 800 W. Rozložení nožů 3D Quattro blade systém pro mixování ve 4 úrovních. </popis>"}]
[null,null,{"$f":"\"<obrazek_url>\" & \"./produkty\" & \"/\" & XML!A40 & \"_\" & XML!B42 &\".jpg\" & \"</obrazek_url>\"","v":"<obrazek_url>./produkty/6_2.jpg</obrazek_url>"}]
[null,null,{"$f":"\"<cena_puvodni>\" & (XML!F42) & \"</cena_puvodni>\"","v":"<cena_puvodni>1999</cena_puvodni>"},null,null,null," "]
[null,null,{"$f":"\"<cena>\" & (XML!G42) & \"</cena>\"","v":"<cena>1399</cena>"}]
[null,null,{"$f":"\"<url_proklik>\" & XML!H42& \"?utm_content=\" & XML!B40 & \"&amp;utm_campaign=\" & XML!L7 & \"&amp;</url_proklik>\"","v":"<url_proklik>http://www.penta.cz/cz/mixery-mlynky-roboty/329659770-mixer-g21-vitalstick-800-w-red-black?utm_content=Hnetace&amp;utm_campaign=Petna_2017_07&amp;</url_proklik>"}]
[null,"</zbozi>"]
[null,"<zbozi>"]
[null,null,{"$f":" \"<nazev>\" & XML!C43 & \"</nazev>\"","v":"<nazev>Blender G21</nazev>"}]
[null,null,{"$f":" \"<popis>\" & XML!D43 & \"</popis>\"","v":"<popis>Blender G21 Perfect Smoothie Red je kvalitní výkonný a multifunkční mixér. Mixér má výkon 1500 W, od 10 000 do 35 000 otáček za minutu.</popis>"}]
[null,null,{"$f":"\"<obrazek_url>\" & \"./produkty\" & \"/\" & XML!A40 & \"_\" & XML!B43 &\".jpg\" & \"</obrazek_url>\"","v":"<obrazek_url>./produkty/6_3.jpg</obrazek_url>"}]
[null,null,{"$f":"\"<cena_puvodni>\" & (XML!F43) & \"</cena_puvodni>\"","v":"<cena_puvodni>7999</cena_puvodni>"},null,null,null," "]
[null,null,{"$f":"\"<cena>\" & (XML!G43) & \"</cena>\"","v":"<cena>5499</cena>"}]
[null,null,{"$f":"\"<url_proklik>\" & XML!H43& \"?utm_content=\" & XML!B40 & \"&amp;utm_campaign=\" & XML!L7 & \"&amp;</url_proklik>\"","v":"<url_proklik>http://www.penta.cz/cz/mixery-mlynky-roboty/111706674-blender-g21-perfect-smoothie-red?utm_content=Hnetace&amp;utm_campaign=Petna_2017_07&amp;</url_proklik>"}]
[null,"</zbozi>"]
[null,"<zbozi>"]
[null,null,{"$f":" \"<nazev>\" & XML!C44 & \"</nazev>\"","v":"<nazev>Blender G21</nazev>"}]
[null,null,{"$f":" \"<popis>\" & XML!D44 & \"</popis>\"","v":"<popis>Univerzální kuchyňský robot Bosch MUM 4880 se stane společně s jeho příslušenstvím všestranným pomocníkem ve vaší kuchyni.</popis>"}]
[null,null,{"$f":"\"<obrazek_url>\" & \"./produkty\" & \"/\" & XML!A40 & \"_\" & XML!B44 &\".jpg\" & \"</obrazek_url>\"","v":"<obrazek_url>./produkty/6_4.jpg</obrazek_url>"}]
[null,null,{"$f":"\"<cena_puvodni>\" & (XML!F44) & \"</cena_puvodni>\"","v":"<cena_puvodni>9990</cena_puvodni>"}]
[null,null,{"$f":"\"<cena>\" & (XML!G44) & \"</cena>\"","v":"<cena>7999</cena>"},null,null,null," "]
[null,null,{"$f":"\"<url_proklik>\" & XML!H44& \"?utm_content=\" & XML!B40 & \"&amp;utm_campaign=\" & XML!L7 & \"&amp;</url_proklik>\"","v":"<url_proklik>http://www.penta.cz/cz/mixery-mlynky-roboty/312520485-blender-g21-perfect-smoothie-acoustic-black?utm_content=Hnetace&amp;utm_campaign=Petna_2017_07&amp;</url_proklik>"}]
[null,"</zbozi>"]
[null,{"$f":" \"<slogan>\" & XML!$C45 & \"</slogan>\"","v":"<slogan>Více kvalitních mixérů, mlínků, robotů a ostatních pomocníků do kuchyně naleznete na www.penta.cz</slogan>"}]
[null,{"$f":"\"<slogan_url>\" & XML!H45& \"?utm_content=set\" & XML!A40 & \"_slogan&amp;utm_campaign=\" & XML!L7 & \"&amp;</slogan_url>\"","v":"<slogan_url>http://www.penta.cz/cz/mixery-mlynky-roboty?utm_content=set6_slogan&amp;utm_campaign=Petna_2017_07&amp;</slogan_url>"},null,null,null,null," "]
["</set>"]
["</banner>"]
[]
[]
["Kódy pro nasazení na Seznam.cz"]
[]
[{"$f":"XML!B5 & \"------------------------\"","v":"Mixery------------------------"}]
["Rectangle","<iframe src=\"https://1.im.cz/r2/DYNBAN/PENTA/07/index.html?idSetu=0&srcFormat=rect&spotId=__SPOTID__\" width=\"970\" height=\"310\" scrolling=\"no\" frameborder=\"0\" style=\"border: 1px solid #d0d0d0;\"></iframe>"]
["Skyscraper","<iframe src=\"https://1.im.cz/r2/DYNBAN/PENTA/07/index.html?idSetu=0&srcFormat=sky&spotId=__SPOTID__\" width=\"300\" height=\"600\" scrolling=\"no\" frameborder=\"0\" style=\"border: 1px solid #d0d0d0;\"></iframe>"]
[]
[{"$f":"XML!B12 & \"------------------------\"","v":"Odstavnovace------------------------"}]
["Rectangle","<iframe src=\"https://1.im.cz/r2/DYNBAN/PENTA/07/index.html?idSetu=1&srcFormat=rect&spotId=__SPOTID__\" width=\"970\" height=\"310\" scrolling=\"no\" frameborder=\"0\" style=\"border: 1px solid #d0d0d0;\"></iframe>"]
["Skyscraper","<iframe src=\"https://1.im.cz/r2/DYNBAN/PENTA/07/index.html?idSetu=1&srcFormat=sky&spotId=__SPOTID__\" width=\"300\" height=\"600\" scrolling=\"no\" frameborder=\"0\" style=\"border: 1px solid #d0d0d0;\"></iframe>"]
[]
[{"$f":"XML!B19 & \"------------------------\"","v":"Susicky------------------------"},null,null,null,null,null," "]
["Rectangle","<iframe src=\"https://1.im.cz/r2/DYNBAN/PENTA/07/index.html?idSetu=2&srcFormat=rect&spotId=__SPOTID__\" width=\"970\" height=\"310\" scrolling=\"no\" frameborder=\"0\" style=\"border: 1px solid #d0d0d0;\"></iframe>"]
["Skyscraper","<iframe src=\"https://1.im.cz/r2/DYNBAN/PENTA/07/index.html?idSetu=2&srcFormat=sky&spotId=__SPOTID__\" width=\"300\" height=\"600\" scrolling=\"no\" frameborder=\"0\" style=\"border: 1px solid #d0d0d0;\"></iframe>"]
[]
[{"$f":"XML!B26 & \"------------------------\"","v":"Krajece------------------------"}]
["Rectangle","<iframe src=\"https://1.im.cz/r2/DYNBAN/PENTA/07/index.html?idSetu=3&srcFormat=rect&spotId=__SPOTID__\" width=\"970\" height=\"310\" scrolling=\"no\" frameborder=\"0\" style=\"border: 1px solid #d0d0d0;\"></iframe>"]
["Skyscraper","<iframe src=\"https://1.im.cz/r2/DYNBAN/PENTA/07/index.html?idSetu=3&srcFormat=sky&spotId=__SPOTID__\" width=\"300\" height=\"600\" scrolling=\"no\" frameborder=\"0\" style=\"border: 1px solid #d0d0d0;\"></iframe>"]
[]
[{"$f":"XML!B33 & \"------------------------\"","v":"Roboti------------------------"}]
["Rectangle","<iframe src=\"https://1.im.cz/r2/DYNBAN/PENTA/07/index.html?idSetu=4&srcFormat=rect&spotId=__SPOTID__\" width=\"970\" height=\"310\" scrolling=\"no\" frameborder=\"0\" style=\"border: 1px solid #d0d0d0;\"></iframe>",null,null,null,null," "]
["Skyscraper","<iframe src=\"https://1.im.cz/r2/DYNBAN/PENTA/07/index.html?idSetu=4&srcFormat=sky&spotId=__SPOTID__\" width=\"300\" height=\"600\" scrolling=\"no\" frameborder=\"0\" style=\"border: 1px solid #d0d0d0;\"></iframe>"]
[]
[{"$f":"XML!B40 & \"------------------------\"","v":"Hnetace------------------------"}]
["Rectangle","<iframe src=\"https://1.im.cz/r2/DYNBAN/PENTA/07/index.html?idSetu=5&srcFormat=rect&spotId=__SPOTID__\" width=\"970\" height=\"310\" scrolling=\"no\" frameborder=\"0\" style=\"border: 1px solid #d0d0d0;\"></iframe>"]
["Skyscraper","<iframe src=\"https://1.im.cz/r2/DYNBAN/PENTA/07/index.html?idSetu=5&srcFormat=sky&spotId=__SPOTID__\" width=\"300\" height=\"600\" scrolling=\"no\" frameborder=\"0\" style=\"border: 1px solid #d0d0d0;\"></iframe>"]
[]
[]
[null,null,null," "]
[]
[null,null,null," "]